{"text_format":"3","workbook":"xlsx","n_sheets":3,"sheets":["general","SW-R","SW-L"],"not_rendered":{"images":14,"defined_names":1},"read":"whole","date_system":"1900"}

{"sheet":"general","index":0,"n_rows":128,"n_cols":42,"rows_kept":128,"merged":[[1,22,2,27],[3,23,3,27],[6,10,6,12],[6,14,6,15],[6,17,6,18],[8,10,8,12],[8,17,8,18],[10,3,10,5],[10,10,10,12],[12,4,13,4],[12,6,17,6],[12,16,12,17],[15,1,21,1],[15,2,18,2],[15,18,16,18],[16,7,17,7],[17,13,18,13],[18,17,20,17],[18,18,20,18],[19,2,21,2],[20,20,21,20],[21,19,22,19],[22,1,25,1],[24,19,26,19],[25,2,27,2],[26,1,27,1],[26,18,28,18],[27,6,28,6],[27,7,28,7],[32,3,32,5],[34,4,34,6],[34,16,35,16],[35,24,35,27],[38,2,42,2],[39,4,39,5],[50,17,51,27],[53,17,54,27],[60,17,60,18],[60,19,60,20],[60,21,60,22],[60,23,60,24],[61,17,61,18],[61,19,61,20],[61,21,61,22],[61,23,61,24],[62,17,63,20],[62,21,66,27],[67,21,68,24],[67,26,67,27],[68,26,68,27]]}
[{"$nulls":29},"č.jaz.",{"$f":"VLOOKUP(E5,AD3:AE11,2,FALSE)","v":1},null,"SVYHLEDAT","CZ","EN","DE","PL","FR","NL","EST","FIN","RU"]
[{"$nulls":22},{"$f":"AG12","v":"VERTIKÁLNÍ VEDENÍ (VL)"},{"$nulls":6},"Jazyk","číslo",null,{"$f":"VLOOKUP(AH2,AH2:AR96,$AE$1,FALSE)","v":"Zvolit jazyk: "},"Zvolit jazyk: ","Select a language:","Wählen Sie eine Sprache","Wybierz język","Sélectionner une langue","Kies een taal:","Valige keel","Valitse kieli:","Выберите язык:"]
[null,"Zvol jazyk:",{"$nulls":5},{"$f":"VLOOKUP(AG3,AG2:AR96,$AE$1+1,FALSE)","v":"Šířka otvoru"},{"$nulls":3},"mm",{"$nulls":17},"CZ",1,null,{"$f":"VLOOKUP(AH3,AH3:AR97,$AE$1,FALSE)","v":"Šířka otvoru"},"Šířka otvoru","Opening width","Lichte Breite","Szerokość otworu","LARGEUR DE BAIE","Dagmaat breedte","Ava laius","Oviaukon leveys","Ширина проема"]
[null,"Select a language:",{"$nulls":21},"W max 8000 mm; H max 6500 mm; max. 40 m2",{"$nulls":5},"EN",2,null,"Výška otvoru","Výška otvoru","Opening height","Lichte Höhe","Wysokość otworu","HAUTEUR DE BAIE","Dagmaat hoogte","Ava kõrgus","Oviaukon korkeus","Высота проема"]
[null,"Wählen Sie eine Sprache:",null,null,"CZ",null,null,{"$f":"VLOOKUP(AG4,AG2:AR96,$AE$1+1,FALSE)","v":"Výška otvoru"},{"$nulls":3},"mm",null,null,{"$f":"VLOOKUP(AH99,AH99:AR175,$AE$1,FALSE)","v":"Prosím, vyplňte pole, která jsou označena barevně!"},{"$nulls":14},"DE",3,null,"POHLED ZEVNITŘ","POHLED ZEVNITŘ","INTERIOR VIEW","INNENANSICHT","Widok od środka","VUE INTERIEURE","BINNENAANZICHT","seestvaade","SISÄLTÄPÄIN KUVATTUNA","Вид изнутри"]
[null,"Wybierz język:",{"$nulls":27},"PL",4,null,"ŘEZ A-A","ŘEZ A-A","SECTION A-A","DURCHSCHNITT A-A","Przekrój A-A","COUPE A-A","DOORSNEDE A-A","vaade A-A","LEIKKAUS A-A","Разрез А-А"]
[null,"Sélectionner une langue:",{"$nulls":5},{"$f":"VLOOKUP(AG101,AG8:AR101,$AE$1+1,FALSE)","v":"Ovládání"},{"$nulls":6},{"$f":"IF(OR(K7=AG102,K7=\"\"),\"\",VLOOKUP(AG106,AG106:AR106,$AE$1+1,FALSE))","v":""},{"$nulls":14},"FR",5,null,"ŘEZ B-B","ŘEZ B-B","SECTION B-B","DURCHSCHNITT B-B","Przekrój B-B","COUPE B-B","DOORSNEDE B-B","VAADE B-B","LEIKKAUS B-B","Разрез B-B"]
[null,"Valige keel",{"$nulls":27},"NL",6,null,"POZNÁMKA:","POZNÁMKA:","NOTE:","ACHTUNG:","Uwaga:","Remarque:","OPMERKING:","MÄRKUS","HUOMAUTUS:","ПРИМЕЧАНИЯ:"]
[null,"Valitse kieli:",{"$nulls":5},{"$f":"AG120","v":"Typ panelu"},{"$nulls":21},"EST",7]
[null,"Выберите язык:",{"$nulls":27},"FIN",8]
[{"$nulls":3},{"$f":"VLOOKUP($AG$5,$AG$2:$AR$96,$AE$1+1,FALSE)","v":"POHLED ZEVNITŘ"},{"$nulls":3},{"$f":"AG126","v":"Typ vedení"},{"$nulls":8},{"$f":"VLOOKUP(AG6,AG2:AR96,$AE$1+1,FALSE)","v":"ŘEZ A-A"},{"$nulls":12},"RU",9]
[{"$nulls":32},"VERTIKÁLNÍ VEDENÍ (VL)","VERTIKÁLNÍ VEDENÍ (VL)","VERTICAL LIFT SYSTEM (VL)","VERTIKALER BESCHLAG (VL)","PROWADZENIE PIONOWE (VL)","LEVEE VERTICALE (VL)","VERTICAAL PLAFOND SYSTEEM (VL)","Vertikaaltõste","SUORANOSTO (VL)","ВЕРТИКАЛЬНЫЙ ПОДЪЕМ (VL)"]
[{"$nulls":4},{"$f":"IF($K$11=\"2\"\"\",100,120)","v":120},{"$nulls":5},{"$f":"IF(OR(K11=AG127,K11=AG128),\"W>7500 mm => 3'\",\"\")","v":""},{"$nulls":5},{"$f":"\"D=\"&$L$66","v":"D=550"},{"$nulls":15},"PRUŽINY NAD PŘEKLADEM","PRUŽINY NAD PŘEKLADEM","springs above lintel","Federn oberhalb des Sturzes","SPRĘŻYNY NAD NADPROŻEM","RESSORTS AVANTS DEPORTES DU LINTEAU","veren boven latei","Vedrud ava kohal","jouset ovipalkkin päällä","нижнее расположение вала"]
[{"$nulls":10},{"$f":"IF(OR(K11=AG127,K11=AG128),\"H> 4500 mm &W>6500 mm => 3'\",\"\")","v":""},{"$nulls":21},"pro HL>600 a HL<=1200","pro HL>600 a HL<=1200","pro HL>600 and HL<=1200","pro HL>600 und HL<=1200","pro HL>600 i HL<=1200","pro HL>600 et HL<=1200","PANEEL 40 mm","HL>600 ja HL<=1200","pro HL>600 ja HL<=1200","при высоте подъема > 600 и <= 1200"]
[{"$nulls":32},"PANEL 40mm","PANEL 40mm","SECTION THICKNESS 40 mm","Paneel 40 mm","Panel 40 mm","40 mm PANNEAU","Max. BxH 5000x5500 max. 25m2","Paneel 40 mm","Lamelli 40mm","ТОЛЩИНА СЕКЦИИ 40мм "]
[null,null,{"$f":"\"A= \"&P62","v":"A= 130"},{"$nulls":29},"Max. W x H 4000x4000","Max. W x H 4000x4000","Max. W x H 4000x4000","Max. W x H 4000x4000","Max. W x H 4000x4000","Max. W x H 4000x4000","elektrisch bediende deuren","Max. W x H 4000x4000","Max. W x H 4000x4000","макс. ШхВ (WxH) 4000x4000"]
[{"$nulls":8},{"$f":"$AG$36","v":"MONTÁŽNÍ PLOCHA PRO MOTOR ( L nebo R )"}]
[]
[{"$nulls":17},{"$f":"\"A=\"&P62","v":"A=130"},{"$f":"\"F=\"&P60","v":"F=0"}]
[null,null,{"$f":"\"F= \"&P60","v":"F= 0"},{"$nulls":29},"Montáž na cihlové zdivo","Montáž na cihlové zdivo","mounting on brickwork","Montage auf Mauerwerk und Ziegel","montaż do muru i cegły","montage sur béton","montage op beton","Paigaldus kiviseinale","asennus tiiliseinän","монтаж на бетон"]
[{"$nulls":8},{"$f":"VLOOKUP(AG48,AG2:AR96,$AE$1+1,FALSE)","v":"nezbytný boční prostor pro motor nebo řetězový pohon ( L nebo R )"},{"$nulls":23},"Montáž na porobeton","Montáž na porobeton","mounting on cellular concrete","Montage auf Porenbeton oder Gasbeton","montaż do betonu porowatego","montage sur parpaing creux","montage op gasbeton","Paigaldus poorbetoonile","asennus betoniin","монтаж на газобетон"]
[{"$nulls":32},"Montáž na opláštění","Montáž na opláštění","mounting on insulated cůadding","Montage auf ISO-Trapezblechfassade","montaż do płaszcza","montage sur structure métallique  (a fournir par le charpentier)","montage op binnendooscontructie met damwandbeplating","Paigaldus soojustatud seinapaneelile","asennus eristettyyn seinäelementtiin","монтаж на металлокаркас"]
[{"$nulls":8},{"$f":"AG37","v":"NEZBYTNÝ VOLNÝ PROSTOR"}]
[]
[{"$nulls":8},{"$f":"VLOOKUP(AG49,AG2:AR96,$AE$1+1,FALSE)","v":"montážní plocha pro řídící jednotku motoru, rozměr 250 x 400 mm"},{"$nulls":23},"PRÁCE, KTERÉ MUSÍ BÝT PROVEDENY ZÁKAZNÍKEM PŘED MONTÁŽÍ, POKUD NEBYLO DOHODNUTO JINAK","PRÁCE, KTERÉ MUSÍ BÝT PROVEDENY ZÁKAZNÍKEM PŘED MONTÁŽÍ, POKUD NEBYLO DOHODNUTO JINAK","WORK TO BE CARRIED OUT BY CUSTOMER, UNLESS IN ADVANCE OTHERWISE IS AGREED IN WRITING.","VORBEREITUNGEN UND ARBEITEN DIE VOM AUFTRAGGEBER ZU ERBRINGEN SIND, AUßER BEI SCHRIFTLICHER VEREINBARUNG IM VORAUS:","PRACE, KTÓRE MUSZĄ ZOSTAĆ WYKONANE PRZEZ KLIENTA PRZED WYKONANIEM MONTAŻU, O ILE NIE UZGODNIONO INACZEJ.","APPROVISIONNEMENT & TRAVAUX INCOMBANT AU MAITRE D'OUVRAGE  (sauf accord contraire)","VOORZIENINGEN EN WERKZAAMHEDEN DOOR OPDRACHTGEVER TE VERZORGEN, TENZIJ VOORAF SCHRIFTELIJK ANDERS IS OVEREENGEKOMEN ","Kliendi poolt tehtavad ettevalmistustööd v.a juhul kui pole kirjalikult teistmoodi kokku lepitud","ASIAKKAAN TEHTÄVÄT TYÖT, ELLEI ETUKÄTEEN KIRJALLISESTI MUUTOIN SOVITTU ","МАТЕРИАЛЫ И ПРОВЕДЕНИЕ РАБОТ ОБЕСПЕЧИВАЮТСЯ КЛИЕНТОМ,ЕСЛИ ИНОЕ НЕ ОГОВОРЕНО ЗАРАНЕЕ В ПИСЬМЕННОЙ ФОРМЕ"]
[null,null,{"$f":"\"H=\"&K5","v":"H="},{"$nulls":5},{"$f":"VLOOKUP(AG50,AG2:AR96,$AE$1+1,FALSE)","v":"osa cca 1.400 až 1.500 mm od podlahy"},{"$nulls":15},{"$f":"VLOOKUP(AG20,AG2:AR96,$AE$1+1,FALSE)","v":"Montáž na cihlové zdivo"},{"$nulls":7},"Konstrukční:","Konstrukční:","Constructional :","Bauseits:","Konstrukcyjne:","Structure: ","Bouwkundig:","Ehituslikud:","\nRakenteellinen:","Конструктивно:"]
[{"$nulls":18},{"$f":"\"H= \"&$K$5","v":"H= "},{"$nulls":13},"Příprava montážních ploch pro vedení vrat a pro pružiny.","Příprava montážních ploch pro vedení vrat a pro pružiny.","Supply and fix mounting frame and mounting surfaces for the rails and the spring packet in case of aerated concrete or sandwichpanels etc.","Ein stählerner Montagerahmen zur Befestigung der vertikalen Laufschienen und des Federpakets bei nicht tragfähigen Flächen wie z.B. Porenbeton, Gasbeton, Isolationspanelen u.s.w..","Przygotowanie powierzchni montażowych dla prowadzenia bramy oraz dla sprężyn.","Préparation de la structure de montage des rails de guidage et des ressorts pour une pose sur panneaux isolants","Een stalen montageframe voor de bevestiging van de verticale looprails en het verenpakket bij niet dragende montagevlakken, zoals gasbeton, isolatiepanelen, sandwichpanelen enz.","Avaettevalmistusraami tarnimine ja paigaldus siinide ja vedrude kinnituseks","Toimittaa ja asentaa asennuskehyksen ja asennuspinnat kiskoille ja jousipaketille tapauksessa jossa kevytbetooni tai sandwich-paneeli jne.","Стальная монтажная рама для установки вертикальных направляющих и пружин в случае не несущих монтажных поверхностей, таких как: газобетон, изоляционные панели, сэндвич-панели и т.д."]
[{"$nulls":8},{"$f":"VLOOKUP(AG51,AG3:AR97,$AE$1+1,FALSE)","v":"zásuvka CEE 16 A, 5P, 400 V, jištěno 6 A (10 A) jističem, proudový chránič I=30 mA"},{"$nulls":23},"Montáž vodorovného vedení může být max. 1 metr od pevné konstrukce.","Montáž vodorovného vedení může být max. 1 metr od pevné konstrukce.","Mounting possibilities for the horizontal rails up to 1 meter above the rails must be provided.","Befestigungsmöglichkeit für die Zwischen- und Endaufhängung der horizontalen Laufschienen bis zu max. 1 m über diesen Laufschienen.","Montaż prowadzenia poziomego można wykonać w oddaleniu maks. 1 metra od konstrukcji stałej.","Lorsque les possibilités de montage des rails horizontaux dépassent ","Benodigde montagevlakken en vrije ruimtes, volgens tekening.","Paigaldusruum ülalpool siini max. 1m","Asennus mahdollisuudet vaakakiskoille enintään 1 metrin korkeudella kiskoista pitää olla mahdollista.","Способы крепления для горизонтальных направляющих максимум до 1м над данными направляющими."]
[{"$nulls":32},"Nezbytné montážní plochy a volný prostor dle nákresu.","Nezbytné montážní plochy a volný prostor dle nákresu.","Necessary mounting surface and free room as shown.","Benötigte Montageflächen und Freiräume gemäß Zeichnung.","Niezbędne powierzchnie montażowe oraz wolna przestrzeń wg rysunku.","Adapter la structure et l' espace disponible selon nos plans de réservations ci-contre","Elektrisch: (bij elektrisch bediende deuren)","Piisav paigaldusruum vastavalt lisatud joonisele","Tarvittava kiinnityspinta ja vapaa tilaa kuvan mukaisesti.","Необходимые монтажные поверхности и свободное пространство в соответствии с чертежом"]
[{"$nulls":32},"Elekrická příprava (pro elektricky ovládaná sekční vrata): ","Elekrická příprava (pro elektricky ovládaná sekční vrata): ","Electrical supply required to be :","Elektrisch (bei elektrisch bedienten Toren):","Przygotowanie elektryczne (dla elektrycznie sterowanej bramy segmentowej) :","Alimentation electrique  (pour porte motorisée) :",null,"Elektriliselt avatavate uste jaoks","Sähkönsyöttö tarvittu:","Электрика (для ворот с электрическим управлением):"]
[{"$nulls":24},{"$f":"VLOOKUP(AG21,AG2:AR96,$AE$1+1,FALSE)","v":"Montáž na porobeton"},{"$nulls":7},"Zásuvka CEE 16 A, 5P, 400 V = zásuvka s nulovým a zemnícím vodičem","Zásuvka CEE 16 A, 5P, 400 V = zásuvka s nulovým a zemnícím vodičem","400V/230V 3 phase neutral and earth terminating, provided by euro plug socket.","Stromzufuhr 400V/230V mittels Eurosteckdose, 3 Phasen+0+PE max.1 meter vom Schaltkasten.","Gniazdo CEE 16 A, 5P, 400 V = gniazdo z przewodnikiem zerowym i uziemiającym","400V triphase T+N avec prise de raccordement CEE 16 A","Voeding  400V/230V door middel van eurostopcontact, 3 fase+0+PE max. ","Toite vedu ajamini - 400V/230V, 3 faasi","400V / 230V 3 vaihe+neutraali ja maadoitus tarjotuna Euro pistorasiasta.","Питание 400V/230V посредством заземленной евророзетки, 3 фазы+0+РЕ "]
[null,{"$f":"IF(K7=AG102,125,IF(AND(K7=AG103,R7=AG107),375,IF(AND(K7=AG104,R7=AG107),375,125)))","v":125},{"$nulls":6},{"$f":"IF(K7=AG102,125,IF(AND(K7=AG103,R7=AG108),375,IF(AND(K7=AG104,R7=AG108),375,125)))","v":125},{"$nulls":23},"Zajistit vhodnou montážní plochu pro řídící jednotku motoru 250 x 400 mm","Zajistit vhodnou montážní plochu pro řídící jednotku motoru 250 x 400 mm","Provide suitable mounting surface for control panel, dimensions 250 x 400 mm","Montagefläche für Schaltkasten, Abmessungen 250 x 400 mm","Zapewnić odpowiednią powierzchnię montażową dla jednostki sterującej silnika 250x400","Assurer une surface de montage adéquate pour le coffret de commande du moteur L.250 x H.400 mm","Montagevlak t.b.v. schakelkast, afmetingen 250 x 400 mm","Kontrolleri jaoks piisava paigaldusruumi tagamine 250x400 mm","Tarjoa sopivan kiinnityspinnan  ohjauspaneelia varten ,mitat 250 x 400 mm","необходимо обеспечить монтажную поверхность для панели управления, размеры 250х400 мм"]
[]
[{"$nulls":4},{"$f":"IF($K$11=\"2\"\"\",80,100)","v":100},null,{"$f":"IF($K$11=\"2\"\"\",80,100)","v":100}]
[{"$nulls":16},{"$f":"IF($K$9=$AG$122,290,250)","v":250},{"$nulls":15},"NEZBYTNÁ MONTÁŽNÍ PLOCHA","NEZBYTNÁ MONTÁŽNÍ PLOCHA","NECESSARY MOUNTING SURFACE","BENÖTIGTE MONTAGEFLÄCHEN","NIEZBĘDNA POWIERZCHNIA MONTAŻOWA","SURFACE NECESSAIRE DE MONTAGE","BENODIGDE MONTAGEVLAKKEN","Vajalik paigaldusruum","TARVITTAVA KIINNITYSPINTA","необходимая монтажная поверхность"]
[null,null,{"$f":"IF($K$11=$AG$128,$B$32+25,$B$32)","v":125},null,null,{"$f":"                                           \"W= \"&$K$3","v":"W= "},null,null,{"$f":"IF($K$11=$AG$128,$I$32+25,$I$32)","v":125},{"$nulls":15},{"$f":"VLOOKUP(AG22,AG2:AR96,$AE$1+1,FALSE)","v":"Montáž na opláštění"},{"$nulls":7},"MONTÁŽNÍ PLOCHA PRO MOTOR ( L nebo R )","MONTÁŽNÍ PLOCHA PRO MOTOR ( L nebo R )","MOUNTING SURFACE FOR MOTOR (L or R)","MONTAGEFLÄCHE FÜR DEN MOTOR (wahlweise L oder R)","POWIERZCHNIA MONTAŻOWA DLA SILNIKA ( L lub R )","SURFACE DE L'EMPLACEMENT POUR  (L ou R)","BENODIGDE VRIJE RUIMTE (L of R)","Vajalik ruum mootori paigalduseks  (L või R)","KIINNITYSPINTA MOOTORILLE (L tai R)","монтажная поверхность для мотора (L и R)"]
[{"$nulls":4},{"$f":"VLOOKUP(AG$7,AG2:$AR$96,$AE$1+1,FALSE)","v":"ŘEZ B-B"},{"$nulls":6},{"$f":"VLOOKUP(AG41,AG2:AR96,$AE$1+1,FALSE)","v":"sklon podlahy"},{"$nulls":20},"NEZBYTNÝ VOLNÝ PROSTOR","NEZBYTNÝ VOLNÝ PROSTOR","NECESSARY FREE                  ROOM","BENÖTIGTER FREIRAUM","NIEZBĘDNA            WOLNA          PRZESTRZEŃ","ESPACE                             LIBRE       NECCESSARIE","EXTRA                                      VRIJE                                        RUIMTE                                  BIJ                                 MOTOR/                                               KETTING","Vajalik vaba ruum ","TARVITTAVA VAPAA TILA","необходимое свободное пространство"]
[]
[null,null,{"$f":"IF($K$9=$AG$122,290,250)","v":250}]
[]
[{"$nulls":32},"sklon podlahy","sklon podlahy","fall of the floor","Bodenneigung","nachylenie podłogi","réservations seuil béton","vloer met waterkering","pinna langus","kaltevuus","пол с водоотводом"]
[{"$nulls":32},"směrem ven","směrem ven","outside","nach aussen","w kierunku na zewnątrz",{"$f":"\"\"","v":""},"buitenzijde","väljaspool","ulkopuoli"]
[{"$nulls":5},{"$f":"$B$32+$I$32+$K$3","v":250},{"$nulls":26},"sklon 3%","sklon 3%","fall 3%","Gefälle 3%","nachylenie 3%","PENTE 3%","afschot 3%","langus 3%","kaltevuus 3%","наклон 3%"]
[{"$nulls":32},"směrem ven","směrem ven","internal level","Wasserschenkel","w kierunku na zewnątrz","réservations seuil béton","niveau binnen","Sisemine tasand","sisäinen taso"]
[{"$nulls":17},{"$f":"VLOOKUP(AG35,AG2:AR96,$AE$1+1,FALSE)","v":"NEZBYTNÁ MONTÁŽNÍ PLOCHA"},{"$nulls":5},{"$f":"VLOOKUP(AG37,AG4:AR97,$AE$1+1,FALSE)","v":"NEZBYTNÝ VOLNÝ PROSTOR"},{"$nulls":8},"sklon podlahy","sklon podlahy","floor with raised","Boden mit","nachylenie podłogi",{"$f":"\"\"","v":""},"vloer met  ","põrand koos tõstetud sisetasandiga","lattia nostetulla","пол с наклоном 3%"]
[]
[{"$nulls":17},{"$f":"VLOOKUP(AG36,AG4:AR97,$AE$1+1,FALSE)","v":"MONTÁŽNÍ PLOCHA PRO MOTOR ( L nebo R )"}]
[{"$nulls":32},"nezbytný boční prostor pro motor nebo řetězový pohon ( L nebo R )","nezbytný boční prostor pro motor nebo řetězový pohon ( L nebo R )","necessary side room for electrical- or hauling chain operation (L or R)","Benötigter Freiraum bei Elektro- oder Haspelkettenbedienung (wahlweise L oder R)","niezbędna przestrzeń boczna dla silnika lub napędu łańcuchowego ( L lub R )","écoinçon minimum requis pour le moteur ou treuil a chaîne (L ou R)","benodigde vrije ruimte voor elektrische- of ketting bediening (L of R)","vajalik küljeruum mootori või tali puhul (L või R)","tarvittava tila mootori- tai ketjunostolle (L tai R)","необходимое боковое пространство для электропривода или цепного редуктора (L и R)"]
[{"$nulls":32},"montážní plocha pro řídící jednotku motoru, rozměr 250 x 400 mm","montážní plocha pro řídící jednotku motoru, rozměr 250 x 400 mm","mounting surface for control panel dimensions 250 x 400 mm","Montagefläche für Antriebsteuerung Mass 250 x 400 mm","powierzchnia montażowa dla jednostki sterującej silnika wymiary 250 x 400 mm","surface de montage pour le Coffret de commande  du moteur (dimensions : L.250 x H.400 mm)","montagevlak t.b.v. schakelkast afmetingen 250 x 400 mm","paigalduspind 250 x 400 mm kontrollerile","kiinnityspinta ohjauspaneelia varten ,mitat 250 x 400 mm","монтажная поверхность для блока управления 250 x 400 мм"]
[{"$nulls":32},"osa cca 1.400 až 1.500 mm od podlahy","osa cca 1.400 až 1.500 mm od podlahy","center line ca 1.400 -1.500 mm above floor","Achse ca. 1.400 bis 1.500 mm vom Boden","oś ok. 1.400 do 1.500 mm od podłogi","axe d'env. 1 400 a 1 500 mm a compter ","hartlijn ca. 1.400 - 1.500 boven de vloer","Keskjoon ca 1400-1500 mm põrandast","keskiviiva ca 1,400 -1,500 mm: n korkeudella lattiasta","осевая линия примерно 1.400-1.500 мм над уровнем пола"]
[{"$nulls":17},{"$f":"VLOOKUP(AG25,AG2:AR96,$AE$1+1,FALSE)","v":"PRÁCE, KTERÉ MUSÍ BÝT PROVEDENY ZÁKAZNÍKEM PŘED MONTÁŽÍ, POKUD NEBYLO DOHODNUTO JINAK"},{"$nulls":14},"zásuvka CEE 16 A, 5P, 400 V, jištěno 6 A (10 A) jističem, proudový chránič I=30 mA","zásuvka CEE 16 A, 5P, 400 V, jištěno 6 A (10 A) jističem, proudový chránič I=30 mA","Electric outlet CEE 16 A, 5P, 400 V, protect by 6 A (10 A) circuit breaker, residual current device I=30 mA.","Steckdose CEE 16 A, 5P, 400 V, Sicherung 6 A (10 A) mit Schutzschalter, Stromschutz  I=30 mA.","gniazdo CEE 16 A, 5P, 400 V, ochrona za pomocą bezpiecznika 6A (10A), wyłącznik prądowy l=30 mA","prise CEE 16 A, 5P, 400 V, assuré par un disjoncteur 6 A (10 A),  disjoncteur I=30 mA","Eurostopcontact CEE 16 A, 5P, 400V, afgezekerd met 6A (10A), Overstroombeveiliging I=30mA. ","jõupesa CEE 16A, 5P, 400V koos 6A (10A) kaitsmega. Rikkevookukaitse I=30 mA","Pistorasiasta CEE 16A, 5P, 400V, suojattu 6 A (10 A) katkaisijalla, vikavirtasuoja I = 30 mA.","электрическая розетка CEE 16А, 5P, 400V, защита автоматическим выключателем 6А(10А), устройство защитного отключения (УЗО) I=30mA"]
[]
[null,{"$f":"VLOOKUP(AG8,AG2:AR96,$AE$1+1,FALSE)","v":"POZNÁMKA:"},{"$nulls":15},{"$f":"VLOOKUP(AG26,AG2:AR96,$AE$1+1,FALSE)","v":"Konstrukční:"}]
[{"$nulls":17},{"$f":"VLOOKUP(AG27,AG2:AR96,$AE$1+1,FALSE)","v":"Příprava montážních ploch pro vedení vrat a pro pružiny."}]
[null,{"$f":"VLOOKUP(AG55,AG2:AR96,$AE$1+1,FALSE)","v":"Plocha, která se montuje, musí být rovná a pevná a všechny montážní plochy musí být v jedné rovině. "},{"$nulls":30},"Plocha, která se montuje, musí být rovná a pevná a všechny montážní plochy musí být v jedné rovině. ","Plocha, která se montuje, musí být rovná a pevná a všechny montážní plochy musí být v jedné rovině. ","Mounting surface must be flat and massive and all mounting surfaces must be in one level.","Fläche, an die montiert wird, muss gerade und fest sein und alle Montageflächen müssen in einer Ebene sein.","Powierzchnia, do której wykonywany jest montaż, musi być równa i stabilna,a wszystkie powierzchnie montażowe powinny znajdować się w jednej płaszczyźnie.","La surface d'appui pour la pose de la porte sectionnelle doit etre dans le meme plan et verticale.","De achterkanten van de penanten, de latei en de montagevlakken van het verenpakket dienen vlak en in één lijn te liggen.","Paigalduspind peab olema sirge, loodis ja mittepudenev ning kõik paigalduspinnad peavad olema ühes tasapinnas","Asennuspintojen pitää olla tasaisia, kiinteitä ja samassa linjassa.","Монтажная поверхность должна быть ровной и располагаться в одной вертикальной плоскости."]
[null,{"$f":"VLOOKUP(AG56,AG2:AR96,$AE$1+1,FALSE)","v":"Otvor musí být svislý a obdélníkový."},{"$nulls":30},"Otvor musí být svislý a obdélníkový.","Otvor musí být svislý a obdélníkový.","Furthermore the opening must be plumb and square.","Im übrigen müssen die lichten Masse eben und rechtwinklig sein.","Otwór musi być pionowy i prostokątny.","L'ouverture de la baie doit etre parfaitement de niveau et d'equerre.","Tevens moet de dagmaat vlak en haaks zijn.","Ava peab olema täpne ja nelinurkne","Lisäksi oviaukon pitää olla pysty- ja vaakasuora sekä nelikulmainen.","Проем также должен быть ровным и прямоугольным."]
[null,{"$f":"VLOOKUP(AG57,AG2:AR96,$AE$1+1,FALSE)","v":"Podlaha musí být rovná a vodorovná."},{"$nulls":30},"Podlaha musí být rovná a vodorovná.","Podlaha musí být rovná a vodorovná.","Floor area must be flat and horizontal.","Der Fussboden muss glatt und waagerecht sein.","Podłoga musi być równa i pozioma.","Le sol doit etre parfaitement horizontal et plan.","De afgewerkte vloer dient vlak en waterpas te liggen.","Põrandapind peab olema sile ja horisontaalne","Lattian pitää olla tasainen ja vaakasuora.","Обработанный пол должен быть ровным и без склонов."]
[null,{"$f":"AG124","v":"Když 1 1/4\" hřídel, tak osa hřídele H+180 mm"},{"$nulls":15},{"$f":"VLOOKUP(AG29,AG2:AR96,$AE$1+1,FALSE)","v":"Nezbytné montážní plochy a volný prostor dle nákresu."}]
[null,{"$f":"VLOOKUP(AG60,AG2:AR96,$AE$1+1,FALSE)","v":"Rozměry jsou v mm"},{"$nulls":4},{"$f":"VLOOKUP(AG74,AG6:AR99,$AE$1+1,FALSE)","v":"Ruční ovládání"},{"$nulls":5},{"$f":"VLOOKUP(AG81,AG6:AR99,$AE$1+1,FALSE)","v":"Volný prostor nad překladem"},{"$nulls":4},{"$f":"VLOOKUP(AG31,AG2:AR96,$AE$1+1,FALSE)","v":"Zásuvka CEE 16 A, 5P, 400 V = zásuvka s nulovým a zemnícím vodičem"}]
[null,"W =",{"$f":"VLOOKUP(AG61,AG2:AR96,$AE$1+1,FALSE)","v":"Šířka otvoru"},{"$nulls":3},"L/R",{"$f":"VLOOKUP(AG75,AG6:AR99,$AE$1+1,FALSE)","v":"Obě strany"},{"$nulls":3},{"$f":"IF(K11=AG128,\"min. 150\",\"min. 125\")","v":"min. 125"},"F","H+400",null,{"$f":"IF(OR(K5=0,K5=\"\"),0,K5+400)","v":0},null,{"$f":"AG32","v":"Zajistit vhodnou montážní plochu pro řídící jednotku motoru 250 x 400 mm"},{"$nulls":14},"Rozměry jsou v mm","Rozměry jsou v mm","UNITS in mm","MASSE in mm","Wymiary podane w mm","MESURES en mm","MATEN in mm","Mõõdud mm","YKSIKKÖ mm","размеры в мм:"]
[null,"H =",{"$f":"VLOOKUP(AG62,AG3:AR96,$AE$1+1,FALSE)","v":"Výška otvoru"},{"$nulls":9},{"$f":"VLOOKUP(AG82,AG6:AR99,$AE$1+1,FALSE)","v":"Osa hřídele nad překladem"},{"$nulls":4},{"$f":"VLOOKUP(AG85,AG2:AR96,$AE$1+1,FALSE)","v":"Sestavil:"},null,{"$f":"VLOOKUP(AG86,AG2:AR96,$AE$1+1,FALSE)","v":"Upravil:"},null,{"$f":"VLOOKUP(AG87,AG2:AR96,$AE$1+1,FALSE)","v":"Schváleno - datum:"},null,{"$f":"VLOOKUP(AG88,AG2:AR96,$AE$1+1,FALSE)","v":"Název souboru:"},null,{"$f":"VLOOKUP(AG89,AG2:AR96,$AE$1+1,FALSE)","v":"Datum:"},{"$f":"VLOOKUP(AG90,AG2:AR96,$AE$1+1,FALSE)","v":"Měřítko"},{"$f":"VLOOKUP(AG91,AG2:AR96,$AE$1+1,FALSE)","v":"Formát: "},{"$nulls":4},"Šířka otvoru","Šířka otvoru","Opening width","Lichte Breite","Szerokość otworu","LARGEUR DE BAIE","Dagmaat breedte","Ava laius","Oviaukon leveys","ширина проема"]
[null,"F = ",{"$f":"VLOOKUP(AG65,AG5:AR98,$AE$1+1,FALSE)","v":"Volný prostor nad překladem"},{"$nulls":3},{"$f":"VLOOKUP(AG76,AG6:AR99,$AE$1+1,FALSE)","v":"Ovládání elektricky nebo řetězovým převodem"},{"$nulls":5},"A",null,null,{"$f":"IF(K5<=3300,K5+130,IF(AND(K5>3300,K5<=5950),K5+150,K5+180))","v":130},null,"K.Luňák",null,"R. Kříž",null,"2019-09-24",null,"STP",null,"2019-09-24","-","A3",{"$nulls":4},"Výška otvoru","Výška otvoru","Opening height","Lichte Höhe","Wysokość otworu","HAUTEUR DE BAIE","Dagmaat hoogte","Ava kõrgus","Oviaukon korkeus","высота проема"]
[null,"A = ",{"$f":"VLOOKUP(AG82,AG6:AR99,$AE$1+1,FALSE)","v":"Osa hřídele nad překladem"},{"$nulls":3},"L/R",{"$f":"VLOOKUP(AG77,AG6:AR99,$AE$1+1,FALSE)","v":"Motor nebo řetěz. př."},{"$nulls":3},{"$f":"IF(K11=AG128,\"min. 400\",\"min. 375\")","v":"min. 375"},"H=<3300",null,null,"H+130",null,"http://door-documents.com/en/indy-installation-drawing-vl",{"$nulls":3},{"$f":"VLOOKUP(AG94,AG2:AR96,$AE$1+1,FALSE)","v":"STAVEBNÍ PŘIPRAVENOST VERTIKÁLNÍ VEDENÍ (VL)"},{"$nulls":10},"High lift","High lift","High lift","Höhe der Führung","Wyciąg wysoki","LEEVE HAUTE","High lift","Kõrge tõste","korkeanosto","Высокий подъем"]
[null,"L = ",{"$f":"VLOOKUP(AG67,AG7:AR100,$AE$1+1,FALSE)","v":"Volný prostor vlevo"},{"$nulls":9},"3300<H=<5500",null,null,"H+150",{"$nulls":16},"Výška stropu","Výška stropu","Interior height","Höhe Innenraum","Wysokość stropu","HAUTEUR SOUS PLAFOND","Hoogte binnenruimte","Sisemine kõrgus","sisäkorkeus","высота внутри помещения до перекрытий"]
[null,"R = ",{"$f":"VLOOKUP(AG68,AG8:AR101,$AE$1+1,FALSE)","v":"Volný prostor vravo"},{"$nulls":3},{"$f":"AG69","v":"Hloubka vedení"},{"$nulls":5},"H>5500",null,null,"H+180",{"$nulls":16},"Volný prostor nad překladem","Volný prostor nad překladem","Free room above lintel","Freiraum über Sturz","Wolna przestrzeń nad nadprożem","RETOMBEE DE LINTEAU DISPONIBLE","Vrije ruimte boven latei","Vaba ruum laeni","vapaa ylätila","свободное пространство над проемом"]
[null,"D = ",{"$f":"VLOOKUP(AG69,AG9:AR102,$AE$1+1,FALSE)","v":"Hloubka vedení"},{"$nulls":3},"D",{"$nulls":4},{"$f":"IF(AND(K5<=3300,K9=AG121),450,IF(AND(K5<=3300,K9=AG122),490,IF(AND(K5>3300,K5<=5500,K9=AG121),500,IF(AND(K5>3300,K5<=5500,K9=AG122),540,IF(AND(K9=AG121,K5>=5500),550,550)))))","v":550},{"$nulls":20},"Výška montážní plochy nad otvorem","Výška montážní plochy nad otvorem","Height of frame above opening","Höhe über Montagefläche Loch","Wysokość powyżej otworu montażowego powierzchni","HAUTEUR AU-DESSUS DU TROU DE SURFACE DE MONTAGE","Hoogte frame boven latei","Raami kõrgus ava kohal","Rungon korkeus oviaukon yläpuolella.","высота конструкции ворот над проемом"]
[{"$nulls":7},"H=<3300 ","=>450",{"$nulls":23},{"$f":"VLOOKUP(AH67,AH67:AR161,$AE$1,FALSE)","v":"Volný prostor vlevo"},"Volný prostor vlevo","Free side room left","Freiraum LINKS","Wolna przestrzeń W LEWO","ECOINCON GAUCHE","Vrije zijruimte links","Vaba küljeruum vasakul","vapaa tila vasemalla","свободное боковое пространство СЛЕВА"]
[{"$nulls":7},"3300<H=<5500","=>500",{"$nulls":12},{"$f":"AG12","v":"VERTIKÁLNÍ VEDENÍ (VL)"},{"$nulls":3},{"$f":"VLOOKUP(AG95,AG2:AR96,$AE$1+1,FALSE)","v":"Kód:"},{"$f":"VLOOKUP(AG96,AG2:AR96,$AE$1+1,FALSE)","v":"Verze:"},{"$nulls":5},"Volný prostor vravo","Volný prostor vravo","Free side room right","Freiraum RECHTS","Wolna przestrzeń W PRAWO","ECOINCON DROITE","Vrije zijruimte rechts","Vaba küljeruum paremal","vapaa tila oikealla","свободное боковое пространство СПРАВА"]
[{"$nulls":7},"H>5500","=> 550",{"$nulls":16},"030-1",1939,{"$nulls":5},"Hloubka vedení","Hloubka vedení","Back room","Einbautiefe","Głębokość prowadzenia poziomego","REFOULEMENT HORS-TOUT","Inbouwdiepte","Sügavus","tila takana","монтажная глубина"]
[{"$nulls":32},"Kotvící bod č. 1","Kotvící bod č. 1","1 st hanging point","1. Aufhängepunkt","Punkt mocowania nr 1","POINT D'ANCRAGE 1 SUSPENTE","1e ophangpunt","1.kinnituskoht","1. ripustuspiste","1 точка крепления горизонтальных направляющих"]
[{"$nulls":32},"Kotvící bod č. 2","Kotvící bod č. 2","2 nd hanging point","2. Aufhängepunkt","Punkt mocowania nr 2","POINT D'ANCRAGE 2 SUSPENTE","2e ophangpunt","2.kinnituskoht","2. ripustuspiste","2 точка крепления горизонтальных направляющих"]
[{"$nulls":32},"Kotvící bod č. 3","Kotvící bod č. 3","3 rd hanging point","3. Aufhängepunkt","Punkt mocowania nr 3","POINT D'ANCRAGE 3 SUSPENTE","3e ophangpunt","3. kinnituskohta","3. ripustuspiste","3 точка крепления горизонтальных направляющих"]
[{"$nulls":32},"Volný prostor nad překladem","Volný prostor nad překladem","Free room above mounting surface","Freiplatz auf der Mountageplatz","Wolny przestrzeń nad nadproźem","Espace au-dessus de la surface de montage","Ruimte boven montagevlak","Vaba ruum ülalpool paigalduspinda","Vapaa tila asennuspisten kohdalla","технологический зазор"]
[{"$nulls":32},"Ruční ovládání","Ruční ovládání","Manually operated","Handbedienung","Sterowanie ręczne","PORTE MANUELLE","Handbediend","Käsitsi avatav","Käsikäyttöinen","ручное управление"]
[{"$nulls":32},"Obě strany","Obě strany","Both sided","Beide Seiten","Obie strony","LES 2 COTES","Beide zijden","Mõlemal pool","\nKaksipuoleinen","обе стороны"]
[{"$nulls":32},"Ovládání elektricky nebo řetězovým převodem","Ovládání elektricky nebo řetězovým převodem","Electrical or hauling chain operated","Elektrisch- oder Haspelkettenbedient","Sterowanie elektr. lub za pom. przekł. łańc.","PORTE MOTORISEE OU AVEC TREUIL A CHAINE","Elektrisch- of handketting bediend","Elektriliselt või taliga avatav","Sähkö- tai ketjukäytöinen","электрическое управление или с помощью цепи"]
[{"$nulls":32},"Motor nebo řetěz. př.","Motor nebo řetěz. př.","Motor or chain side","Motor-oder Kettenseite","Silnik lub przekł. łańc.","ECOINCON LIBRE A COTE DE MOTEUR","Motor- of kettingzijde","Mootori või tali pool","Mootorin tai ketjun puolinen","сторона цепи или мотора"]
[{"$nulls":32},"Hloubka vedení","Hloubka vedení","Back room","Einbautiefe","Głębokość prowadzenia","REFOULEMENT HORS-TOUT","Inbouwdiepte","Sügavus","Tila takana","монтажная глубина"]
[{"$nulls":32},"Kotvící bod, když je","Kotvící bod, když je","Hanging point if","Aufhängepunkte, wenn","Punkty mocowania, jeżeli","POINT D'ANCRAGE DES SUSPENTES, SI","Ophangpunt, als","Kinnituskoht, kui ","Ripustuspiste jos","точки крепления горизонтальных направляющих, если"]
[{"$nulls":32},"Kotvící bod","Kotvící bod","Hanging point","Aufhängepunkte","Punkty mocowania","POINT D'ANCRAGE DES SUSPENTES","Ophangpunt","Kinntuskoht","Ripustuspiste","точка крепления"]
[{"$nulls":32},"Volný prostor nad překladem","Volný prostor nad překladem","Free room above lintel","Freiraum über Sturz","Wolna przestrzeń nad nadprożem (min.)","RETOMBEE DE LINTEAU DISPONIBLE","Vrije ruimte boven latei","Vaba ruum sillusest  laeni","Tila oviaukon päällä","свободное пространство над проемом"]
[{"$nulls":32},"Osa hřídele nad překladem","Osa hřídele nad překladem","Height of shaft above lintel","Mitte Achse zum Sturz","Oś wału nad nadprożem","POSITIONNEMENT AXE DE l'ARBRE DE LINTEAU","Center as boven latei","Kesktelg","Akseli ovipalkkin päällä","центральная ось вала"]
[]
[]
[{"$nulls":32},"Sestavil:","Sestavil:","Designed by:","Aufgestellt:","Wykonał:","DESSINE PAR:","Getekend door:","Joonestatud:","\nSuunnitellut:","спроектировано:"]
[{"$nulls":32},"Upravil:","Upravil:","Checked by","Bereinigt:","Skorygował:","MODIFIE PAR:","Gecontroleerd door:","Kontrollitud:","Tarkistanut","проверил:"]
[{"$nulls":32},"Schváleno - datum:","Schváleno - datum:","Approved by - date:","Bereinigt am:","Skorygowano dnia:","MODIFIE LE (DATE):","Goedgekeurd datum:","Kinnitatud:","\nHyväksytty - päivämäärä:","одобрил-дата:"]
[{"$nulls":32},"Název souboru:","Název souboru:","File name:","Dateiname:","Nazwa pliku:","TITRE:","Bestandsnaam","Faili nimi:","\nTiedoston nimi:","навание файла:"]
[{"$nulls":32},"Datum:","Datum:","Date:","Datum:","Data:","DATE:","Datum:","Kuupäev:","Päivämäärä:","дата:"]
[{"$nulls":32},"Měřítko","Měřítko","Scale:","Massst.:","Podział.:","ECHELLE:","Schaal:","Mõõtkava:","Mittakaava:","шкала:"]
[{"$nulls":32},"Formát: ","Formát: ","Sheet:","Format:","Format:","FORMAT:","Sheet:","Formaat:","Lista:","лист:"]
[{"$nulls":32},"STAVEBNÍ PŘIPRAVENOST","STAVEBNÍ PŘIPRAVENOST","INSTALLATION DRAWING","BAUBEREITSCHAFT","PRZYGOTOWANIE_KONSTRUKCYJNE","PLAN DE RESERVATIONS & ENCOMBREMENTS","INBOUWTEKENING VERTICAAL PLAFOND SYSTEEM (VL)","Paigaldusjoonis","ASENNUSPIIRUSTUS ","монтажный чертеж"]
[{"$nulls":32},"pružiny nad překladem ","pružiny nad překladem ","springs above lintel "," Federn oberhalb des Sturzes ","sprężyny nad nadprożem ","RESSORTS AVANTS DEPORTES DU LINTEAU","verenpakket boven latei","vedrud ava kohal","jouset ovipalkkin päällä","нижнее расположение вала"]
[{"$nulls":32},"STAVEBNÍ PŘIPRAVENOST VERTIKÁLNÍ VEDENÍ (VL)","STAVEBNÍ PŘIPRAVENOST VERTIKÁLNÍ VEDENÍ (VL)","INSTALLATION DRAWING VERTICAL LIFT SYSTEM (VL)","BAUBEREITSCHAFT VERTIKALER BESCHLAG (VL)","PRZYGOTOWANIE KONSTRUKCYJNE PROWADZENIE PIONOWE (VL)","PLAN DE RESERVATIONS & ENCOMBREMENTS LEVEE VERTICALE (VL-L)","INBOUWTEKENING VERTICAAL PLAFOND SYSTEEM (VL)","Paigaldsujoonis vertikaaltõstele (VL)","ASENNUSPIIRUSTUS SUORANOSTO (VL)","МОНТАЖНЫЙ ЧЕРТЕЖ СИСТЕМА С ВЕРТИКАЛЬНЫМ ПОДЪЕМОМ (VL)"]
[{"$nulls":32},"Kód:","Kód:","Code:","Kode:","Kod:","CODE:","Nr.:","Kood:","Koodi:","код:"]
[{"$nulls":32},"Verze:","Verze:","Version:","Version:","Wersja:","VERSION:","Versie:","Versioon:","Versio:","версия:"]
[{"$nulls":32},"NENÍ POŽADOVÁNO","NENÍ POŽADOVÁNO","NOT REQUIRED","NICHT ERFORDELICH","Nie jest wymagane","Pas nécessaire","NIET BENODIGD","Mitte vajalik:","EI VAADITTU","НЕ ТРЕБУЕТСЯ"]
[]
[{"$nulls":32},"Prosím, vyplňte pole, která jsou označena barevně!","Prosím, vyplňte pole, která jsou označena barevně!","Please, fill in the fields that are marked in color!","Fülen Sie bitte markierte Felder!","Prosimy o wypełnienie pól oznaczonych kolorem!","S'il vous plaît remplissez les champs qui sont marqués en couleur!","Vul a.u.b. de gemarkeerde velden in!","Palun täida värvilised väljad!","\nTäytä kentät, jotka on merkitty värillä!","пожалуйста, заполните поля обозначенные цветом!"]
[]
[{"$nulls":32},"Ovládání","Ovládání","Operated","Bedienung","Sterowanie","PORTE","Bediening","Avamine","Ohjattu","Тип управления"]
[{"$nulls":32},"ručně","ručně","manually","hand","ręcznie wykonany","MANUELLE","hand","käsitsi","manuaalisesti","вручную"]
[{"$nulls":32},"elektricky","elektricky","electrical ","elektrisch","elektrycznie","MOTORISEE","elektrisch","elektriliselt","sähköisesti","электрическое управление или с помощью цепи"]
[{"$nulls":32},"řetězovým převodem","řetězovým převodem","hauling chain operated","Haspeklette","Łańcuch napędu","TREUIL A CHAINE","handketting","taliga","ketjukäyttöinen","\nцепной привод\nцепной привод"]
[]
[{"$nulls":32},"Umístění motoru","Umístění motoru","Possition of motor","Antriebesposition","Pozycja sylnika","LA POSITION MOTEUR","Positie van de motor","mootori asukohta","Mootorin asema","расположение мотора"]
[{"$nulls":32},"Na levé straně","Na levé straně","On the left side","Auf der linken Seite","Po lewej stronie","SUR LE COTE GAUCHE","Aan de linkerzijde","vasakul küljel","Vasemallla","с левой стороны"]
[{"$nulls":32},"Na pravé straně","Na pravé straně","On the right side","Auf der rechten Seite","Po prawej strony","SUR LE COTE DROIT","Aan de rechterzijde","paremal küljel","Oikealla","с правой стороны"]
[]
[{"$nulls":32},"Variantní  montáž pružin","Variantní  montáž pružin","Additional spring mounting","Extra Aufhängung Federpaket","Wariant montażu sprężyn","MONTAGE DES RESSORTS","Extra veer monteren"]
[{"$nulls":32},"když W<2000 - STP-1 pružina (SPR-1)","když W<2000 - STP-1 pružina (SPR-1)","if W< 2000 - INSD-1 spring (SPR-1)","Wenn W< 2000 - BAUS-1 Feder (SPR-1)","jeżeli W< 2000-STP-1 sprężyna (SPR-1)","SI W< 2000 STP-1RESSORT (SPR-1)","als B<2000 - INSD-1 veer (SPR-1)"]
[{"$nulls":32},"když 2000>=W<6000 - STP-2 pružiny (SPR-2)","když 2000>=W<6000 - STP-2 pružiny (SPR-2)","if 2000>=W<6000 - INSD-2 springs (SPR-2)","Wenn 2000>=W<6000- BAUS-2 Federn (SPR-2)","jeżeli 2000>=W<6000-STP-2 sprężyna (SPR-2)","SI 2000>=W<6000 STP-2RESSORTS (SPR-2)","als 2000>=B<6000 - INSD-2 veren (SPR-2)"]
[{"$nulls":32},"když W>=6000 = STP-4 pružiny (SPR-4)","když W>=6000 = STP-4 pružiny (SPR-4)","if W>=6000 - INSD-4 springs (SPR-4)","Wenn W>=6000 - BAUS-4 Federn (SPR-4)","jeżeli W>=6000-STP-4 sprężyna (SPR-4)","SI W> 6000 STP-4RESSORTS (SPR-4)","als B>=6000 - INSD-4 veren (SPR-4)"]
[]
[{"$nulls":32},"když H=<3300","když H=<3300","if H=<3300","Wenn H=<3300","jeżeli H=<3300","SI H=<3300","als H=<3300","Kui  H=<3300","jos H=<3300","при H=<3300"]
[{"$nulls":32},"když 3300<H=<5950","když 3300<H=<5950","if 3300<H=<5950","Wenn 3300<H=<5950","jeżeli 3300<H=<5950","SI 3300<H=<5950","als 3300<H=<5950","kui 3300<H=<5950","jos 3300<H=<5950","при 3300<H=<5950"]
[{"$nulls":32},"když H=>5950","když H=>5950","if H=>5950","Wenn H=>5950","jeżeli H=>5950","SI H=>5950","als H=>5950","Kui H=>5950","jos H=>5950","при H=>5950"]
[]
[{"$nulls":32},{"$f":"VLOOKUP(AH119,AH119:AR195,$AE$1,FALSE)","v":"Ocelovou konstrukci svařit z profilu 100x50x4 dle uvedených rozměrů"},"Ocelovou konstrukci svařit z profilu 100x50x4 dle uvedených rozměrů","Welded steel construction of the profile according to the dimensions 100x50x4","Geschweißte Stahlkonstruktion des Profils nach dem Maße 100x50x4","Stalowa konstrukcja spawana z profilu według wymiarów 100x50x4","Construction en acier soudé du profil en fonction de la dimension 100x50x4","Staalconstructie van het profiel 100x50x4 volgens de afmetingen lassen","Keevitatud teraskonstrukstioon 100x50x4 profiilidest","Profiilin hitsattu teräsrakenne mittojen mukaan 100x50x4","Стальная конструкция из профильной трубы 100х50х4 мм"]
[{"$nulls":32},{"$f":"VLOOKUP(AH120,AH120:AR196,$AE$1,FALSE)","v":"Typ panelu"},"Typ panelu","Type of panel","Paneel-Typ","Rodzaj panelu","Type de panneau","Panel type","Paneelitüüp","lamellin tyypi","Тип панели"]
[{"$nulls":32},"40mm","40mm","40mm","40mm","40mm","40mm","40mm","40 mm","40mm","40мм"]
[{"$nulls":32},"80mm","80mm","80mm","80mm","80mm","80mm","80mm","80 mm","80mm","80мм"]
[]
[{"$nulls":32},"Když 1 1/4\" hřídel, tak osa hřídele H+180 mm","Když 1 1/4\" hřídel, tak osa hřídele H+180 mm","When 1 1/4 \"shaft, axis of shaft is automatically H + 180 mm","Wenn 1 1/4 \"Welle und Wellenachse H + 180 mm","Po 1 1/4 \"Wał i osi wału H + 180 mm","Lorsque 1 1/4 \"arbre et axe de l'arbre H + 180 mm","Wanneer 1 1/4 \"as en as H + 180 mm","1 1/4\" võlli puhul, sillus on HL+360 ja võlli kesktelg on HL+210 MM","Kun 1 1/4 \"akseli, ovipalkki on HL + 360 ja akselin keskiviiva on HL + 210 mm","при использовании вала 1,25 дюйма перемычка (F) = HL+360 и ось вала (A) = HL+210мм"]
[]
[{"$nulls":32},"Typ vedení","Typ vedení","Type of rails","Laufschienen-Typ","Typ moznazowych","Type des rails","Type looprails","Siinide tüüp","Kiskojen tyyppi","Тип направляющих"]
[{"$nulls":32},"2\"","2\"","2\"","2\"","2\"","2\"","2\"","2\"","2\"","2\""]
[{"$nulls":32},"3\"","3\"","3\"","3\"","3\"","3\"","3\"","3\"","3\"","3\""]

{"sheet":"SW-R","index":1,"n_rows":48,"n_cols":6,"rows_kept":48,"merged":[[2,3,3,3],[8,1,11,1],[20,1,23,1],[39,2,40,8],[41,2,42,3],[41,4,42,6],[41,7,48,8],[43,2,44,3],[43,4,44,6],[45,2,46,3],[45,4,46,6],[47,2,48,3],[47,4,48,6]]}
[]
[]
[{"$nulls":3},{"$f":"general!$E$13","v":120}]
[]
[]
[]
[]
[]
[null,{"$f":"general!C16","v":"A= 130"}]
{"$rows_empty":11}
[null,{"$f":"general!$C$26","v":"H="}]
{"$rows_empty":7}
[{"$nulls":3},{"$f":"general!$E$34","v":100},null,{"$f":"general!$G$34","v":100}]
[]
[{"$nulls":4},{"$f":"general!$F$36","v":"W= "}]
{"$rows_empty":8}
[null,null,{"$f":"general!W2","v":"VERTIKÁLNÍ VEDENÍ (VL)"}]
[]
[null,null,{"$f":"general!$AG$106","v":"Umístění motoru"},null,{"$f":"general!$AG$108","v":"Na pravé straně"}]
[]
[null,null,{"$f":"general!$R$61","v":"Sestavil:"}]
[]
[null,null,{"$f":"general!$T$61","v":"Upravil:"}]
[]
[null,null,{"$f":"general!$Z$61","v":"Datum:"}]

{"sheet":"SW-L","index":2,"n_rows":48,"n_cols":8,"rows_kept":48,"merged":[[2,5,3,5],[8,7,11,7],[20,7,23,7],[39,2,40,8],[41,2,42,3],[41,4,42,6],[41,7,48,8],[43,2,44,3],[43,4,44,6],[45,2,46,3],[45,4,46,6],[47,2,48,3],[47,4,48,6]]}
[]
[]
[{"$nulls":5},{"$f":"general!$E$13","v":120}]
[]
[]
[]
[]
[]
[{"$nulls":7},{"$f":"general!$C$16","v":"A= 130"}]
{"$rows_empty":11}
[{"$nulls":7},{"$f":"general!$C$26","v":"H="}]
{"$rows_empty":8}
[{"$nulls":3},{"$f":"general!$E$34","v":100},null,{"$f":"general!$G$34","v":100}]
[]
[{"$nulls":4},{"$f":"general!$F$36","v":"W= "}]
{"$rows_empty":7}
[null,null,{"$f":"general!W2","v":"VERTIKÁLNÍ VEDENÍ (VL)"}]
[]
[null,null,{"$f":"general!$AG$106","v":"Umístění motoru"},null,{"$f":"general!$AG$107","v":"Na levé straně"}]
[]
[null,null,{"$f":"general!$R$61","v":"Sestavil:"}]
[]
[null,null,{"$f":"general!$T$61","v":"Upravil:"}]
[]
[null,null,{"$f":"general!$Z$61","v":"Datum:"}]